bitfinex-derivatives/quotes_ETHF0:USTF0_20241207
["timestamp","ask_amount","ask_price","bid_price","bid_amount"]
[1733564020733,0.90273565,3992.4,3992.3,0.2533337]
[1733564021229,0.3937,3992.6,3992.3,0.0782337]
[1733564021424,0.3937,3992.6,3992.5,0.17509]
[1733564021626,0.3937,3992.6,3992.5,4.28891777]
[1733564021828,0.3937,3992.6,3992.5,0.17509]
[1733564022024,0.3937,3992.6,3992.5,0.378476]
[1733564022331,0.3937,3992.6,3992.5,0.782476]
[1733564023424,0.3937,3992.6,3992.5,0.78247937]
[1733564023634,0.3937,3992.6,3992.5,0.65731538]
[1733564024032,0.3937,3992.6,3992.5,0.57909]
[1733564024434,3.33829685,3992.6,3992.5,0.57909]
[1733564025635,1.47151565,3992.6,3992.5,0.404]
[1733564026036,1.29643565,3992.6,3992.3,3.2078]
[1733564026333,2.94636065,3992.4,3992.3,3.38289]
[1733564026526,0.3937,3992.6,3992.5,0.17509]
[1733564026935,3.34006065,3992.6,3992.5,0.17509]
[1733564029240,3.92899732,3992.8,3992.6,0.17508]
[1733564029241,2.94636065,3992.8,3992.6,0.17508]
[1733564029430,2.94636065,3992.9,3992.8,0.17507]
[1733564029841,0.90273565,3993.0,3992.7,3.6151]
[1733564030041,2.94724274,3992.8,3992.7,3.79018]
[1733564030640,2.94724274,3992.8,3992.7,3.86839908]
[1733564030944,2.94724274,3992.8,3992.7,3.86839776]
[1733564031149,2.94724274,3992.9,3992.8,0.17507]
[1733564031540,0.409,3993.1,3992.9,0.17507]
[1733564031738,2.94676946,3993.0,3992.9,0.17507]
[1733564032338,0.409,3993.1,3992.9,4.11378874]
[1733564032538,0.409,3993.1,3993.0,0.37843563]
[1733564035244,3.2078,3993.6,3993.0,1.10610128]
[1733564035447,3.2078,3993.6,3993.5,0.17504]
[1733564035650,3.2078,3993.6,3993.5,0.25325755]
[1733564036039,3.2078,3993.6,3993.5,0.37839414]
[1733564036350,3.2078,3993.6,3993.5,0.25325755]
[1733564037948,3.2078,3994.7,3993.5,25.2119084]
[1733564038149,0.3918,3994.4,3994.3,0.175]
[1733564038649,0.3918,3994.4,3994.3,0.25319397]
[1733564038849,0.3918,3994.4,3994.3,0.175]
[1733564040755,4.31566625,3994.4,3994.3,0.175]
[1733564041252,4.31566625,3994.4,3994.3,0.5728]
[1733564041455,0.3918,3994.4,3994.3,0.5728]
[1733564041657,4.31453366,3994.4,3994.3,0.5728]
[1733564042553,0.3918,3994.4,3994.3,0.5728]
[1733564043557,0.3918,3994.4,3994.3,0.3978]
[1733564045348,3.33148565,3994.4,3994.3,0.3978]
[1733564046252,0.3918,3994.4,3994.3,0.3978]
[1733564046452,3.33097591,3994.4,3994.3,0.3978]
[1733564046851,1.29453565,3994.4,3994.0,0.56662]
[1733564047043,0.98391,3994.3,3994.0,0.17502]
[1733564047242,2.93913403,3994.2,3994.0,0.17502]
[1733564047443,2.93913403,3994.1,3993.9,0.17502]
[1733564047649,0.8089,3994.3,3993.8,3.2078]
[1733564047845,0.98391,3994.3,3993.8,3.2078]
[1733564048050,0.98391,3994.3,3994.0,0.17502]
[1733564048246,0.8089,3994.3,3994.1,0.17502]
[1733564049854,0.8089,3994.3,3993.8,3.2078]
[1733564049855,0.98391,3994.3,3994.0,0.17502]
[1733564050156,0.98391,3994.3,3994.1,0.17502]
[1733564050657,0.8089,3994.3,3993.8,3.2078]
[1733564050951,0.17503,3993.9,3993.8,3.2078]
[1733564051151,0.8089,3994.3,3993.8,3.2078]
[1733564051551,0.17501,3994.2,3994.0,0.17502]
[1733564051848,0.8089,3994.3,3994.2,0.17501]
[1733564052054,0.3918,3994.4,3994.0,0.90273565]
[1733564052249,0.3918,3994.4,3994.3,0.17501]
[1733564055155,0.5668,3994.4,3994.2,0.57581]
[1733564055350,0.3918,3994.4,3994.3,0.17501]
[1733564055557,0.5668,3994.4,3994.2,0.57581]
[1733564055752,0.3918,3994.4,3994.3,0.17501]
[1733564055948,1.29453565,3994.4,3994.2,0.4008]
[1733564056151,0.17501,3994.2,3994.1,0.4024]
[1733564056550,0.17501,3994.2,3994.1,0.57742]
[1733564057355,0.17501,3994.2,3994.1,0.4024]
[1733564057954,0.58301,3994.2,3994.1,0.4024]
[1733564058661,0.17502,3994.0,3993.9,0.17502]
[1733564058857,0.408,3994.2,3993.8,3.2078]
[1733564059162,0.17502,3994.0,3993.9,0.25321971]
[1733564059349,0.408,3994.2,3993.9,0.07819971]
[1733564059555,0.17502,3994.1,3993.8,3.2078]
[1733564059860,0.17502,3994.1,3993.9,0.25323045]
[1733564060059,0.17502,3994.1,3993.9,0.17503]
[1733564060563,0.17502,3994.0,3993.9,0.17503]
[1733564060758,0.17502,3994.0,3993.9,0.25323171]
[1733564061565,0.408,3994.2,3993.8,3.2078]
[1733564061566,0.17503,3993.9,3993.8,3.2078]
[1733564061856,4.11053565,3994.1,3993.7,0.3966]
[1733564062057,0.58843,3993.8,3993.7,0.3966]
[1733564062259,0.4134,3993.8,3993.7,0.64983744]
[1733564062472,0.4134,3993.8,3993.7,0.57163]
[1733564064369,0.4134,3993.8,3993.7,0.3966]
[1733564064370,0.58843,3993.8,3993.7,0.3966]
[1733564064668,0.4134,3993.8,3993.7,0.3966]
[1733564065962,0.17503,3993.9,3993.7,0.3966]
[1733564066164,0.57523,3993.9,3993.7,0.3966]
[1733564066462,0.57523,3993.9,3993.8,40.8]
[1733564067869,0.4002,3993.9,3993.8,40.8]
[1733564069467,0.4002,3993.9,3993.7,0.57163]
[1733564069766,0.57523,3993.9,3993.8,0.20332982]
[1733564072667,0.57523,3993.9,3993.8,0.07820378]
[1733564076470,0.17503,3993.8,3993.7,0.3966]
[1733564077981,0.17507,3993.0,3992.9,0.17507]
[1733564078172,2.94814612,3993.2,3993.0,0.17506]
[1733564078487,0.17506,3993.2,3993.1,0.17506]
[1733564078668,2.94814612,3993.3,3993.2,0.17506]
[1733564078871,2.94814612,3993.4,3993.3,0.17505]
[1733564079066,2.94814612,3993.4,3993.2,0.17505]
[1733564079680,3.12319612,3993.4,3992.9,0.4083]
[1733564079884,3.12319612,3993.4,3993.2,0.17506]
[1733564080073,3.12319612,3993.4,3992.9,0.4083]
[1733564080074,2.94814612,3993.4,3992.9,0.4083]
[1733564080380,0.17505,3993.3,3993.0,0.07821328]
[1733564080580,0.17506,3993.2,3993.1,0.07821328]
[1733564080972,0.17506,3993.2,3993.1,0.25327328]
[1733564081175,0.17506,3993.2,3993.1,0.07821328]
[1733564081371,0.17506,3993.2,3993.0,0.17506]
[1733564081577,0.17506,3993.1,3993.0,0.17506]
[1733564081975,0.17507,3993.0,3992.9,1.48610565]
[1733564082177,2.94814612,3993.2,3992.9,1.38925179]
[1733564082380,0.17506,3993.1,3993.0,0.17506]
[1733564082780,0.17506,3993.1,3992.9,1.31103565]
[1733564083083,0.17506,3993.1,3993.0,0.17507]
[1733564083773,0.17506,3993.1,3992.9,1.48610565]
[1733564084577,0.17506,3993.1,3993.0,0.20336106]
[1733564084885,0.17506,3993.1,3993.0,14.26816183]
[1733564085182,0.414,3993.3,3993.0,14.26816183]
[1733564085375,0.17506,3993.2,3993.1,12.89127222]
[1733564085874,0.17506,3993.2,3993.1,12.81305631]
[1733564086082,0.17506,3993.2,3993.1,12.89127203]
[1733564086280,0.17506,3993.2,3993.1,12.71621203]
[1733564087281,0.17506,3993.2,3993.1,12.89127203]
[1733564087482,0.17506,3993.2,3993.1,12.71621203]
[1733564090578,1.07779565,3993.2,3993.1,4.89163027]
[1733564090784,1.07779565,3993.2,3993.1,10.76013019]
[1733564090980,1.48549565,3993.2,3993.1,10.76013019]
[1733564091182,1.48549565,3993.2,3993.1,10.7600788]
[1733564091483,1.48549565,3993.2,3993.1,10.76008251]
[1733564091685,4.25858177,3993.2,3992.9,0.4083]
[1733564091886,0.17507,3993.0,3992.9,0.4083]
[1733564093081,0.17507,3993.0,3992.9,0.58337]
[1733564093283,0.17507,3993.0,3992.9,0.4083]
[1733564093585,0.17507,3993.0,3992.9,0.58337]
[1733564095189,3.12320612,3993.2,3993.1,0.17506]
[1733564096584,0.17506,3993.1,3993.0,0.58396]
[1733564098492,0.17506,3993.1,3993.0,0.4089]
[1733564098793,3.12320612,3993.1,3993.0,0.4089]
[1733564099199,0.17506,3993.1,3993.0,0.4089]
[1733564099686,0.17506,3993.1,3993.0,4.39925408]
[1733564101392,0.17506,3993.1,3993.0,0.07822301]
[1733564102096,0.55346,3993.1,3993.0,3.99035408]
[1733564102391,0.55346,3993.1,3993.0,0.07822301]
[1733564103587,0.17507,3993.0,3992.9,3.91213107]
[1733564103788,0.17507,3993.0,3992.9,0.07822664]
[1733564104396,0.55127,3993.0,3992.9,0.07822664]
[1733564105599,0.3762,3993.0,3992.6,3.91213107]
[1733564105782,0.17508,3992.7,3992.6,3.91213107]
[1733564105987,3.38288,3992.7,3992.6,3.99036096]
[1733564106183,3.38288,3992.7,3991.9,10.19242894]
[1733564106184,3.2078,3992.7,3992.3,3.91213107]
[1733564106389,3.2078,3992.7,3992.1,3.91213107]
[1733564106390,0.90273565,3992.5,3992.1,3.91213107]
[1733564106591,0.17511,3992.0,3991.9,4.30133107]
[1733564106790,0.17511,3992.0,3991.9,4.38235016]
[1733564106991,0.17511,3992.0,3991.9,4.30410648]
[1733564107193,0.17511,3992.0,3991.9,4.38234828]
[1733564107394,3.38291,3992.0,3991.9,0.07824596]
[1733564108390,0.17512,3991.8,3991.7,1.95709362]
[1733564108593,0.17512,3991.8,3991.7,2.03534066]
[1733564109193,0.17512,3991.8,3991.7,0.07824704]
[1733564110203,0.17512,3991.8,3991.7,0.25336704]
[1733564110404,0.17512,3991.8,3991.7,0.07824704]
[1733564110698,0.17512,3991.8,3991.7,0.07824705]
[1733564110895,0.17512,3991.8,3991.6,0.58753]
[1733564111095,0.17512,3991.8,3991.7,0.07824703]
[1733564111302,0.17512,3991.8,3991.6,0.58753]
[1733564111801,1.31573565,3991.9,3991.6,0.4124]
[1733564111995,0.17512,3991.7,3991.6,0.4124]
[1733564112196,0.17512,3991.7,3991.6,0.49064709]
[1733564112897,0.17512,3991.7,3991.6,0.4124]
[1733564117699,0.17513,3991.6,3991.5,0.3892]
[1733564118004,1.07786565,3991.6,3991.5,0.3892]
[1733564121200,0.90273565,3991.6,3991.5,0.56433]
[1733564121396,0.413,3991.9,3991.5,0.56433]
[1733564121397,1.31573565,3991.9,3991.5,0.3892]
[1733564121597,0.17512,3991.7,3991.6,0.17513]
[1733564122299,1.31573565,3991.9,3991.5,0.3892]
[1733564122504,0.17513,3991.6,3991.5,0.56433]
[1733564122700,0.17513,3991.6,3991.5,0.64258105]
[1733564123706,1.07786565,3991.6,3991.5,0.46745105]
[1733564124502,1.07786565,3991.6,3991.5,0.4674495]
[1733564126403,1.07786565,3991.6,3991.5,0.6425795]
[1733564127101,1.07786565,3991.6,3991.5,0.4674495]
[1733564127994,0.90273565,3991.6,3991.5,0.6425795]
[1733564128199,1.07786565,3991.6,3991.5,0.6425795]
[1733564129896,1.07786565,3991.6,3991.5,0.56433]
[1733564132409,0.90273565,3991.6,3991.5,0.56433]
[1733564132905,0.413,3991.9,3991.8,0.17512]
[1733564133110,3.2078,3992.0,3991.9,0.17511]
[1733564133306,1.07783565,3992.2,3991.5,4.03483]
[1733564133613,1.07783565,3992.2,3992.1,0.1751]
[1733564133906,3.5887,3992.4,3992.3,0.1751]
[1733564134112,3.2078,3992.4,3992.3,0.1751]
[1733564134307,0.90273565,3992.9,3992.3,3.2078]
[1733564134508,0.90273565,3992.9,3992.8,0.17507]
[1733564134809,1.07780565,3992.9,3992.8,0.17507]
[1733564135110,0.90273565,3992.9,3992.8,0.17507]
[1733564136317,1.07780565,3992.9,3992.8,0.17507]
[1733564136509,1.07780565,3992.9,3992.5,0.4036]
[1733564136809,3.589,3993.2,3992.5,0.4036]
[1733564137015,0.90273565,3992.9,3992.8,0.17507]
[1733564137612,3.589,3993.2,3992.8,0.17507]
[1733564137613,4.49173565,3993.2,3993.1,0.17506]
[1733564139622,4.11053565,3993.2,3993.1,0.17506]
[1733564141021,0.17506,3993.1,3993.0,0.17507]
[1733564141221,0.17506,3993.1,3992.7,0.3994]
[1733564141425,0.17506,3993.1,3992.9,0.17507]
[1733564141626,0.17507,3993.0,3992.9,0.17507]
[1733564142223,4.11053565,3993.2,3992.7,0.3994]
[1733564142433,1.07780565,3992.8,3992.7,0.57448]
[1733564143531,1.07780565,3992.8,3992.7,0.3994]
[1733564143734,1.07780565,3992.8,3992.7,0.57448]
[1733564145333,0.90273565,3992.8,3992.7,0.57448]
[1733564146237,4.11053565,3993.2,3993.0,0.17507]
[1733564146536,4.28559565,3993.2,3993.1,0.17506]
[1733564147131,4.11053565,3993.2,3992.7,0.3994]
[1733564147434,0.90273565,3992.8,3992.7,0.57448]
[1733564148037,1.07779565,3993.1,3993.0,0.17507]
[1733564148235,0.17507,3992.9,3992.7,0.3994]
[1733564148535,1.28883565,3992.8,3992.7,0.57448]
[1733564148735,1.28883565,3992.8,3992.7,0.17508]
[1733564152634,1.28883565,3992.8,3992.5,0.4036]
[1733564152842,1.28883565,3992.8,3992.7,0.17508]
[1733564160440,1.28883565,3992.8,3992.7,0.25330615]
[1733564160441,0.3861,3992.8,3992.7,0.25330615]
[1733564160944,0.3861,3992.8,3992.7,41.05330615]
[1733564161444,0.3861,3992.8,3992.7,41.05330565]
[1733564162248,0.3861,3992.8,3992.7,0.25330565]
[1733564162741,0.56117,3992.8,3992.7,0.25330565]
[1733564163143,0.3861,3992.8,3992.7,0.25330565]
[1733564163340,0.3861,3992.8,3992.7,0.37846706]
[1733564164144,0.56117,3992.8,3992.7,0.37846706]
[1733564164345,0.3861,3992.8,3992.7,0.37846706]
[1733564164642,0.56117,3992.8,3992.7,0.37846732]
[1733564165743,0.56117,3992.8,3992.7,0.07822589]
[1733564165939,0.3861,3992.8,3992.3,3.2078]
[1733564166147,0.17509,3992.6,3992.5,0.17509]
[1733564166343,0.17509,3992.6,3992.5,0.25332117]
[1733564166747,0.17508,3992.7,3992.6,0.17508]
[1733564166943,1.07781565,3992.7,3992.6,0.25331117]
[1733564167137,0.17509,3992.6,3992.5,0.17509]
[1733564167338,4.83359715,3992.6,3992.1,0.7878]
[1733564167545,4.02244754,3992.2,3992.1,0.4081]
[1733564167746,1.07783565,3992.2,3992.1,0.4081]
[1733564168146,4.40892681,3992.2,3992.1,0.4081]
[1733564168345,1.28903565,3992.2,3992.1,0.4081]
[1733564168648,2.94517474,3992.5,3992.1,1.31083565]
[1733564168845,2.94517474,3992.5,3992.4,0.17509]
[1733564169149,2.94517474,3992.6,3992.4,0.17509]
[1733564169450,2.94517474,3992.6,3992.5,40.8]
[1733564170746,4.83359715,3992.8,3992.5,40.8]
[1733564170949,0.17508,3992.6,3992.5,40.8]
[1733564171644,3.9308615,3992.7,3992.3,0.3968]
[1733564171952,2.94622404,3992.4,3992.3,0.3968]
[1733564172151,2.94622404,3992.4,3992.3,41.1968]
[1733564172451,1.07782565,3992.5,3992.3,41.1968]
[1733564172652,0.17509,3992.4,3992.3,41.1968]
[1733564173250,4.83359715,3992.5,3992.3,41.1968]
[1733564173452,5.00868715,3992.5,3992.3,41.1968]
[1733564173755,5.00868715,3992.5,3992.3,0.3968]
[1733564174350,1.07782565,3992.5,3992.4,0.07823163]
[1733564174655,1.07782565,3992.5,3992.4,3.99313811]
[1733564174847,1.07782565,3992.5,3992.4,0.07823163]
[1733564175045,0.90273565,3992.5,3992.3,4.31170648]
[1733564175245,1.07782565,3992.5,3992.4,0.07823464]
[1733564175653,1.07782565,3992.5,3992.1,3.91490648]
[1733564175654,0.1751,3992.2,3992.1,3.91490648]
[1733564175847,4.28563565,3992.2,3992.1,0.07824264]
[1733564176043,0.17511,3991.9,3991.8,4.32940648]
[1733564176257,0.17511,3991.9,3991.8,4.41246915]
[1733564176552,0.17511,3991.9,3991.8,5.23302008]
[1733564177254,0.17511,3991.9,3991.8,0.49274637]
[1733564177460,0.17511,3991.9,3991.8,11.10096448]
[1733564177753,0.17511,3991.9,3991.8,5.23246456]
[1733564178349,0.17511,3991.9,3991.8,11.10096448]
[1733564178560,0.17511,3991.9,3991.8,5.23246339]
[1733564178854,0.17511,3991.9,3991.8,5.35765009]
[1733564179053,0.17511,3992.0,3991.8,5.53277009]
[1733564179259,0.17511,3992.0,3991.9,10.70030317]
[1733564179751,0.17511,3992.0,3991.9,4.8188926]
[1733564180052,0.17511,3992.0,3991.9,3.92223313]
[1733564180258,0.3885,3992.1,3991.8,4.33673313]
[1733564180456,1.07784565,3991.9,3991.8,4.33673313]
[1733564180661,1.07784565,3991.9,3991.8,0.4145]
[1733564181051,1.07784565,3991.9,3991.8,4.33673313]
[1733564182247,1.07784565,3991.9,3991.8,0.4145]
[1733564185754,0.17513,3991.6,3991.2,3.2078]
[1733564186060,0.90273565,3991.9,3991.3,0.3911]
[1733564186061,0.17514,3991.4,3991.3,0.3911]
[1733564186252,0.17514,3991.4,3991.3,41.1911]
[1733564186460,3.12335365,3991.4,3991.3,41.1911]
[1733564186663,3.12334365,3991.5,3991.3,0.7973]
[1733564187153,3.12335365,3991.4,3991.3,0.7973]
[1733564187357,0.55714,3991.4,3991.3,0.7973]
[1733564188356,3.50410863,3991.4,3991.3,0.7973]
[1733564188864,3.76494,3991.4,3991.3,0.4062]
[1733564189761,3.5898,3991.4,3991.1,3.92223313]
[1733564189961,1.07787565,3991.2,3991.1,3.92223313]
[1733564190261,0.17515,3991.1,3991.0,45.12383313]
[1733564190463,0.17515,3991.1,3991.0,45.20209335]
[1733564191364,0.17515,3991.1,3991.0,41.2016]
[1733564191662,3.5898,3991.4,3991.0,41.27986004]
[1733564191956,0.17515,3991.1,3991.0,41.2016]
[1733564192259,0.17515,3991.2,3991.0,41.45501009]
[1733564192464,3.5898,3991.4,3991.0,41.37675]
[1733564192668,0.17515,3991.2,3991.0,45.29898313]
[1733564192864,3.5898,3991.4,3991.0,41.2016]
[1733564193058,0.17515,3991.1,3991.0,41.2016]
[1733564193258,0.17515,3991.1,3991.0,41.37675]
[1733564193464,0.17515,3991.2,3991.0,41.37675]
[1733564193761,3.5898,3991.4,3991.0,41.2016]
[1733564194068,0.382,3991.4,3991.3,0.17514]
[1733564194361,3.2078,3991.8,3991.3,4.8114655]
[1733564194660,0.17512,3991.7,3991.5,0.17513]
[1733564195062,0.17512,3991.7,3991.6,0.4046]
[1733564195956,1.07785565,3991.7,3991.6,0.4046]
[1733564199364,0.90273565,3991.7,3991.2,3.91167226]
[1733564199670,1.07787565,3991.4,3991.3,0.07825281]
[1733564201664,0.90273565,3991.4,3991.3,0.25339281]
[1733564201875,0.17513,3991.6,3991.5,0.17513]
[1733564202064,0.17513,3991.6,3991.5,0.25338281]
[1733564202769,0.17513,3991.6,3991.5,0.07825281]
[1733564203161,0.17513,3991.6,3991.5,0.45835281]
[1733564204072,0.17513,3991.6,3991.5,0.63348281]
[1733564204473,0.17513,3991.6,3991.5,0.3801]
[1733564205774,0.17513,3991.6,3991.5,0.55523]
[1733564206071,0.17513,3991.6,3991.5,0.3801]
[1733564207773,0.17513,3991.6,3991.5,0.55523]
[1733564207977,0.17513,3991.6,3991.5,0.3801]
[1733564210083,2.94651823,3991.7,3991.2,0.17514]
[1733564210084,0.17514,3991.3,3991.2,0.17514]
[1733564212584,0.17514,3991.3,3991.2,11.00090199]
[1733564212886,0.17514,3991.3,3991.2,11.00065581]
[1733564214077,0.17514,3991.3,3991.2,10.82551581]
[1733564214278,0.17514,3991.3,3991.2,11.00065581]
[1733564214482,0.17514,3991.3,3991.2,10.82551581]
[1733564214790,0.17514,3991.3,3991.2,4.12063712]
[1733564215086,0.17514,3991.3,3991.2,4.12063974]
[1733564215289,0.17514,3991.3,3991.2,0.37860748]
[1733564215681,0.17514,3991.3,3991.2,5.12287762]
[1733564216183,0.17514,3991.3,3991.2,0.37860748]
[1733564216388,0.17514,3991.3,3991.2,5.12373621]
[1733564216587,0.17514,3991.3,3991.2,5.12373633]
[1733564216782,0.17514,3991.4,3991.3,0.17514]
[1733564217088,0.17514,3991.4,3991.3,4.17178837]
[1733564217274,0.17514,3991.4,3991.3,4.99792871]
[1733564217479,0.17513,3991.5,3991.4,0.17513]
[1733564217685,0.17513,3991.5,3991.4,4.17110581]
[1733564218385,0.17513,3991.5,3991.4,3.99597581]
[1733564218787,0.17513,3991.5,3991.4,4.82307884]
[1733564219382,0.17513,3991.5,3991.4,10.70448941]
[1733564219588,0.17513,3991.5,3991.4,10.82969452]
[1733564219983,0.17513,3991.5,3991.4,10.62623264]
[1733564220291,0.17513,3991.5,3991.4,4.9482803]
[1733564221182,0.17513,3991.5,3991.4,4.82307523]
[1733564221382,0.17513,3991.5,3991.4,10.70547291]
[1733564221581,0.17513,3991.5,3991.4,4.82307523]
[1733564221781,0.17513,3991.5,3991.4,4.94828215]
[1733564222583,0.17513,3991.5,3991.4,4.82307523]
[1733564223186,0.17513,3991.5,3991.4,4.82655636]
[1733564223392,0.17513,3991.5,3991.4,4.95176395]
[1733564223690,0.17513,3991.5,3991.4,10.70803233]
[1733564224081,0.17513,3991.5,3991.4,4.95176407]
[1733564224588,0.17513,3991.5,3991.4,4.82655636]
[1733564225184,0.17513,3991.5,3991.4,4.95176429]
[1733564225384,0.90273565,3991.7,3991.4,4.95176429]
[1733564225585,0.17513,3991.6,3991.5,10.7085985]
[1733564225791,0.17513,3991.6,3991.5,4.82655636]
[1733564225991,0.17513,3991.6,3991.5,0.07825316]
[1733564226192,0.17513,3991.6,3991.5,4.82679984]
[1733564226492,0.17513,3991.6,3991.5,10.70911749]
[1733564226691,0.17513,3991.6,3991.5,10.63086433]
[1733564227590,0.90273565,3991.7,3991.2,0.17514]
[1733564227889,0.17514,3991.3,3991.2,0.17514]
[1733564228489,3.93924418,3991.3,3991.2,0.17514]
[1733564228794,0.17514,3991.3,3991.2,0.17514]
[1733564229694,4.92383291,3991.4,3991.1,0.3976]
[1733564229896,3.93967054,3991.2,3991.1,0.57275]
[1733564230392,3.93967054,3991.2,3991.1,0.65100528]
[1733564231897,4.11481054,3991.2,3991.1,0.65100528]
[1733564232098,4.33777054,3991.2,3991.1,0.65100528]
[1733564232804,4.33777054,3991.2,3991.1,0.57275]
[1733564232805,4.51291054,3991.2,3991.1,0.57275]
[1733564233097,4.51291054,3991.2,3991.1,0.65100576]
[1733564233397,4.33777054,3991.2,3991.1,0.65100576]
[1733564233697,4.51291054,3991.2,3991.1,0.65100576]
[1733564233995,4.33777054,3991.2,3991.1,0.57275]
[1733564234198,4.33777054,3991.2,3991.1,41.37275]
[1733564234709,0.3981,3991.2,3991.1,55.83739415]
[1733564235699,0.3981,3991.2,3991.1,55.83773558]
[1733564236202,0.3981,3991.2,3991.1,55.63427003]
[1733564236407,0.57324,3991.2,3991.1,55.63427003]
[1733564236801,0.57324,3991.2,3991.1,55.83773488]
[1733564237097,0.3981,3991.2,3991.1,55.83773488]
[1733564237299,0.57324,3991.2,3991.1,55.83773488]
[1733564238101,0.57324,3991.2,3991.1,14.86258488]
[1733564238801,0.57324,3991.2,3991.1,24.67518671]
[1733564239098,0.57324,3991.2,3991.1,14.86258488]
[1733564239698,0.57324,3991.2,3991.1,15.03773918]
[1733564240197,0.57324,3991.2,3991.1,14.86258918]
[1733564241798,0.57324,3991.2,3991.1,14.73737739]
[1733564242202,0.57324,3991.2,3991.1,14.91252739]
[1733564242405,0.57324,3991.2,3991.1,14.83427003]
[1733564242707,0.57324,3991.2,3991.1,0.57275]
[1733564242997,0.57324,3991.2,3991.1,0.65100711]
[1733564242998,4.51482452,3991.2,3991.1,0.65100711]
[1733564243195,4.51482452,3991.2,3991.1,0.47585708]
[1733564245805,4.51482452,3991.2,3991.1,0.65100708]
[1733564246806,4.51482452,3991.2,3991.1,0.65100738]
[1733564247609,4.51482452,3991.2,3991.1,0.47585738]
[1733564248404,0.57324,3991.2,3991.1,0.3976]
[1733564248703,3.94156531,3991.2,3991.1,0.65100904]
[1733564249209,0.3874,3991.4,3991.2,0.17514]
[1733564249210,0.17514,3991.3,3991.2,0.17514]
[1733564249401,4.11654967,3991.3,3991.2,0.17514]
[1733564249706,0.90273565,3991.3,3991.2,24.08763439]
[1733564250003,1.07787565,3991.3,3991.2,24.29110332]
[1733564250206,1.07787565,3991.3,3991.2,24.29198517]
[1733564251004,1.07787565,3991.3,3991.2,14.47847928]
[1733564251909,1.07787565,3991.3,3991.2,24.29019983]
[1733564252310,1.07787565,3991.3,3991.2,14.47847928]
[1733564254107,1.07787565,3991.3,3991.2,24.29070827]
[1733564255910,1.07787565,3991.3,3991.2,14.47847928]
[1733564256110,1.07787565,3991.3,3991.2,24.29153557]
[1733564256816,1.07787565,3991.3,3991.2,24.08806664]
[1733564257705,0.17514,3991.2,3991.1,0.3976]
[1733564258311,0.17515,3991.1,3991.0,3.92541189]
[1733564258504,0.17515,3991.1,3990.8,5.88811783]
[1733564258505,0.17516,3990.9,3990.8,0.3797]
[1733564258713,6.00578295,3990.9,3990.8,0.3797]
[1733564259011,6.00587196,3990.9,3990.8,0.3797]
[1733564260611,1.07789565,3990.9,3990.8,0.3797]
[1733564261019,1.47529565,3990.9,3990.8,0.3797]
[1733564261409,6.40327196,3990.9,3990.8,0.3797]
[1733564261611,1.47529565,3990.9,3990.8,0.3797]
[1733564264106,1.87079565,3990.9,3990.8,0.3797]
[1733564264309,0.17517,3990.6,3990.4,4.10059189]
[1733564264505,3.12985915,3990.6,3990.5,0.3968]
[1733564264716,4.0325948,3990.6,3990.5,0.3968]
[1733564265020,1.07790565,3990.6,3990.5,14.80576139]
[1733564267417,1.07790565,3990.6,3990.5,14.80576713]
[1733564268016,1.45250565,3990.6,3990.5,14.80576713]
[1733564268620,1.45250565,3990.6,3990.5,22.25632401]
[1733564268823,1.45250565,3990.6,3990.5,4.77689807]
[1733564269121,1.45250565,3990.6,3990.5,3.92500642]
[1733564269323,0.17518,3990.5,3990.4,3.92500642]
[1733564269518,0.17518,3990.4,3990.3,3.92500642]
[1733564269823,0.90273565,3990.3,3990.1,5.88688314]
[1733564270012,0.90273565,3990.3,3990.2,4.77905324]
[1733564270013,1.07791565,3990.3,3990.2,4.77905324]
[1733564270220,4.28571565,3990.3,3990.2,4.77905324]
[1733564270413,4.28571565,3990.3,3990.2,8.70304828]
[1733564270621,4.28571565,3990.3,3990.2,3.92399504]
[1733564271421,4.11053565,3990.3,3990.0,3.92399504]
[1733564271718,0.17519,3990.1,3990.0,3.92399504]
[1733564271919,4.11053565,3990.3,3989.9,0.7898]
[1733564271920,0.1752,3990.0,3989.9,0.7898]
[1733564272225,1.07793565,3990.0,3989.9,0.3889]
[1733564273225,1.9806713,3990.0,3989.9,0.3889]
[1733564273718,0.1752,3989.9,3989.8,20.2371]
[1733564273920,0.5761,3989.9,3989.8,20.2371]
[1733564275325,0.4009,3989.9,3989.8,20.2371]
[1733564275517,0.4009,3989.9,3989.8,20.41231]
[1733564275719,0.5761,3989.9,3989.8,20.2371]
[1733564275923,0.4009,3989.9,3989.8,20.2371]
[1733564276118,0.5761,3989.9,3989.8,20.2371]
[1733564277323,1.2251,3989.9,3989.8,20.2371]
[1733564280316,1.0499,3989.9,3989.8,20.2371]
[1733564280518,1.2251,3989.9,3989.8,20.2371]
[1733564280719,1.0499,3989.9,3989.8,20.2371]
[1733564281324,1.2251,3989.9,3989.8,20.2371]
[1733564281515,1.0499,3989.9,3989.8,20.41231]
[1733564281717,1.0499,3989.9,3989.8,20.2371]
[1733564281921,1.2251,3989.9,3989.8,20.2371]
[1733564282830,0.649,3989.9,3989.8,20.41231]
[1733564283128,0.8242,3989.9,3989.8,20.2371]
[1733564283927,0.8242,3989.9,3989.8,20.41231]
[1733564284128,0.8242,3989.9,3989.8,20.2371]
[1733564284629,0.8242,3989.9,3989.8,20.41231]
[1733564284831,0.8242,3989.9,3989.8,20.2371]
[1733564285229,0.8242,3989.9,3989.8,20.41231]
[1733564285930,0.649,3989.9,3989.8,20.41231]
[1733564287832,0.8242,3989.9,3989.8,20.41231]
[1733564288831,0.8242,3989.9,3989.8,20.2371]
[1733564289130,0.8242,3989.9,3989.8,20.41231]
[1733564289325,0.649,3989.9,3989.8,20.41231]
[1733564289533,0.8242,3989.9,3989.8,20.41231]
[1733564290329,0.649,3989.9,3989.8,20.41231]
[1733564290529,0.649,3989.9,3989.8,20.49059476]
[1733564291633,0.8242,3989.9,3989.8,20.49059476]
[1733564294136,0.8242,3989.9,3989.8,20.41231]
[1733564294525,1.2384,3989.9,3989.8,20.2371]
[1733564296940,4.19308915,3989.9,3989.8,20.2371]